bitfinex/quotes_SOLUSD_20240915
["timestamp","ask_amount","ask_price","bid_price","bid_amount"]
[1726415337557,0.2512901,136.18,136.16,5.60032342]
[1726415337757,0.2512901,136.18,136.15,1.46864648]
[1726415338074,0.2512901,136.18,136.16,5.60021669]
[1726415338377,0.2512901,136.18,136.17,1.4685835]
[1726415338576,0.2512901,136.18,136.15,1.46858371]
[1726415338748,0.2512901,136.18,136.16,5.60047194]
[1726415338949,0.2512901,136.18,136.14,14.52682639]
[1726415339151,0.2512901,136.18,136.15,5.60049905]
[1726415339377,0.2512901,136.18,136.14,14.52682639]
[1726415339555,0.2512901,136.18,136.15,5.60057866]
[1726415339754,0.2512901,136.18,136.13,14.52682639]
[1726415339968,0.2512901,136.18,136.14,5.6013997]
[1726415340269,0.2512901,136.18,136.15,5.6013997]
[1726415340578,0.2512901,136.18,136.13,14.52682639]
[1726415340878,0.2512901,136.18,136.12,15.35448]
[1726415340879,0.2512901,136.18,136.14,5.60203767]
[1726415341050,0.2512901,136.18,136.12,15.1035]
[1726415341260,0.2512901,136.18,136.13,5.60445132]
[1726415341465,0.2512901,136.18,136.12,15.1035]
[1726415341778,0.2512901,136.18,136.1,20.95172639]
[1726415341948,7.3438,136.17,136.13,5.60326673]
[1726415342151,7.3438,136.17,136.09,5.60326673]
[1726415342365,7.46989,136.16,136.1,5.60326673]
[1726415342566,7.46989,136.16,136.11,5.60326673]
[1726415342879,7.46989,136.16,136.08,15.8907]
[1726415343172,7.345,136.15,136.09,5.60809384]
[1726415343472,7.345,136.15,136.1,5.60809384]
[1726415343689,7.345,136.15,136.08,15.8907]
[1726415343978,8.345,136.15,136.09,5.60879206]
[1726415344187,7.346,136.13,136.05,15.8907]
[1726415344351,7.3464,136.12,136.06,35.61020946]
[1726415344549,7.3464,136.12,136.07,5.61020946]
[1726415344748,7.3464,136.12,136.08,5.61020946]
[1726415344958,7.3464,136.12,136.06,30.0]
[1726415345167,7.3464,136.12,136.04,0.2512901]
[1726415345369,7.3464,136.12,136.07,5.61124873]
[1726415345579,20.0,136.12,136.08,5.61124873]
[1726415345762,20.0,136.12,136.04,0.2512901]
[1726415345952,20.0,136.12,136.05,5.6112845]
[1726415346159,20.0,136.12,136.06,5.61136532]
[1726415346465,0.12549,136.11,136.04,0.2512901]
[1726415346765,7.3476,136.1,136.05,5.61377716]
[1726415346963,7.3481,136.09,136.06,5.61377716]
[1726415347162,8.3481,136.09,136.04,0.2512901]
[1726415348377,1.0,136.09,136.04,0.2512901]
[1726415349183,1.0,136.09,136.04,5.86744057]
[1726415349374,1.0,136.09,136.04,0.2512901]
[1726415351954,7.47249,136.11,136.04,0.2512901]
[1726415354276,28.47189,136.12,136.04,0.2512901]
[1726415354480,1.0,136.12,136.05,14.52682639]
[1726415354672,1.0,136.12,136.06,1.46957215]
[1726415354982,1.0,136.12,136.06,23.902374]
[1726415355187,6.2325,136.13,136.06,23.902374]
[1726415355384,6.2325,136.13,136.06,14.65231639]
[1726415355567,6.2325,136.13,136.07,1.46941077]
[1726415355773,6.2325,136.13,136.08,1.46930278]
[1726415356388,1.0,136.15,136.08,1.46930278]
[1726415356561,21.0,136.15,136.08,1.46930278]
[1726415356758,21.0,136.15,136.07,30.0]
[1726415356963,0.12549,136.14,136.07,30.0]
[1726415357162,0.12549,136.14,136.06,30.0]
[1726415358389,7.47089,136.14,136.06,30.0]
[1726415359585,7.47089,136.14,136.06,44.52682639]
[1726415360990,28.3449,136.15,136.07,15.99637499]
[1726415361292,28.3449,136.15,136.07,14.52682639]
[1726415365075,28.3449,136.15,136.06,14.52682639]
[1726415366594,28.3449,136.15,136.06,20.13513665]
[1726415367394,28.3449,136.15,136.06,14.52682639]
[1726415367568,28.3449,136.15,136.06,20.13505451]
[1726415368090,7.47089,136.14,136.05,38.42920039]
[1726415369092,7.47089,136.14,136.06,5.60754751]
[1726415369591,7.47089,136.14,136.06,14.52682639]
[1726415369799,7.47089,136.14,136.06,20.13428462]
[1726415373303,7.47089,136.14,136.07,14.52682639]
[1726415373502,21.0,136.15,136.09,14.52682639]
[1726415374982,1.0,136.15,136.09,14.52682639]
[1726415376697,1.0,136.15,136.1,14.52682639]
[1726415376994,6.3927,136.16,136.1,14.52682639]
[1726415376995,6.3927,136.16,136.11,14.52682639]
[1726415377195,0.2512901,136.18,136.13,14.52682639]
[1726415377770,0.2512901,136.18,136.14,1.4689152]
[1726415379089,0.2512901,136.18,136.14,14.52682639]
[1726415381103,0.2512901,136.18,136.13,14.52682639]
[1726415381725,0.2512901,136.18,136.11,31.15662639]
[1726415381914,0.2512901,136.18,136.12,30.0]
[1726415382611,7.5944901,136.18,136.12,30.0]
[1726415382775,7.5944901,136.18,136.09,14.52682639]
[1726415382982,7.5944901,136.18,136.1,30.0]
[1726415387199,7.5944901,136.18,136.1,44.52682639]
[1726415388412,0.2512901,136.18,136.11,14.52682639]
[1726415393303,0.2512901,136.18,136.1,44.52682639]
[1726415393891,0.2512901,136.18,136.1,14.52682639]
[1726415397199,0.2512901,136.18,136.1,18.49809725]
[1726415398609,0.2512901,136.18,136.12,14.52682639]
[1726415398808,0.2512901,136.18,136.14,14.52682639]
[1726415400119,0.2512901,136.18,136.13,14.52682639]
[1726415400299,0.2512901,136.18,136.13,44.52682639]
[1726415401023,0.2512901,136.18,136.13,30.0]
[1726415401207,7.3438,136.17,136.13,30.0]
[1726415401709,7.3438,136.17,136.09,14.52682639]
[1726415401909,7.3438,136.17,136.1,30.0]
[1726415402508,1.0,136.14,136.08,3.97127086]
[1726415402711,8.3454,136.14,136.08,3.97127086]
[1726415402910,8.3454,136.14,136.06,6.35926139]
[1726415403504,1.0,136.14,136.06,6.35926139]
[1726415404305,1.0,136.14,136.05,14.52682639]
[1726415404519,1.0,136.14,136.06,6.36004286]
[1726415405818,1.0,136.14,136.07,30.0]
[1726415406017,1.0,136.14,136.08,1.46949642]
[1726415406328,1.0,136.14,136.08,15.99632281]
[1726415406529,1.0,136.14,136.08,14.52682639]
[1726415407510,1.0,136.14,136.07,14.52682639]
[1726415408432,1.0,136.14,136.07,20.88490013]
[1726415408932,1.0,136.14,136.07,20.88513937]
[1726415409827,1.0,136.14,136.08,14.52682639]
[1726415410029,6.1997,136.16,136.1,14.52682639]
[1726415410334,6.1997,136.16,136.11,1.46907022]
[1726415411117,6.1997,136.16,136.1,14.52682639]
[1726415411326,6.1997,136.16,136.11,1.46903281]
[1726415411508,6.1997,136.16,136.1,14.52682639]
[1726415415817,6.1997,136.16,136.11,1.46904629]
[1726415416736,6.1997,136.16,136.1,20.88289871]
[1726415417332,6.1997,136.16,136.1,14.52682639]
[1726415420328,6.1997,136.16,136.1,20.88198422]
[1726415421926,6.1997,136.16,136.11,14.52682639]
[1726415422639,6.1997,136.16,136.08,6.3570381]
[1726415422944,7.346,136.13,136.09,30.0]
[1726415423130,7.346,136.13,136.06,6.3570381]
[1726415423334,7.3466,136.12,136.05,6.3570381]
[1726415423521,7.3466,136.12,136.06,6.3570381]
[1726415423724,7.3466,136.12,136.05,6.3570381]
[1726415423923,7.3459,136.13,136.06,6.3570381]
[1726415424136,7.3459,136.13,136.05,6.3570381]
[1726415424430,7.3459,136.13,136.06,6.3570381]
[1726415424638,7.3459,136.13,136.05,20.88386449]
[1726415424836,7.3459,136.13,136.06,6.3570381]
[1726415425248,7.3465,136.12,136.06,6.3570381]
[1726415425433,7.3465,136.12,136.05,6.3570381]
[1726415425750,7.3465,136.12,136.05,6.35976469]
[1726415426347,7.3465,136.12,136.06,6.35976469]
[1726415426526,7.3465,136.12,136.05,6.35976469]
[1726415426827,7.3465,136.12,136.06,7.82944793]
[1726415427145,7.3465,136.12,136.06,1.46968324]
[1726415427348,8.3454,136.14,136.06,22.35627432]
[1726415427536,8.3454,136.14,136.06,20.88659108]
[1726415428349,8.3454,136.14,136.06,14.52682639]
[1726415428666,1.0,136.14,136.08,14.52682639]
[1726415430738,1.0,136.14,136.07,20.88364421]
[1726415432743,1.0,136.14,136.07,6.35681782]
[1726415432936,7.3459,136.13,136.04,14.77811649]
[1726415433249,7.3459,136.13,136.07,6.35723962]
[1726415433437,7.3459,136.13,136.05,36.35723962]
[1726415433841,1.12549,136.14,136.05,36.35723962]
[1726415434043,0.12549,136.13,136.05,36.35723962]
[1726415435150,7.47149,136.13,136.05,36.35723962]
[1726415436452,7.47149,136.13,136.05,30.0]
[1726415436656,7.47149,136.13,136.05,36.355629]
[1726415436855,7.47149,136.13,136.05,36.35558406]
[1726415437261,7.47149,136.13,136.05,6.35558406]
[1726415437446,7.47149,136.13,136.06,5.61010737]
[1726415437633,7.47149,136.13,136.07,5.61010737]
[1726415437834,7.47149,136.13,136.04,21.13370055]
[1726415438035,7.47149,136.13,136.05,5.61076662]
[1726415438249,7.47149,136.13,136.04,14.77811649]
[1726415438454,7.47149,136.13,136.05,5.61126117]
[1726415438662,7.47149,136.13,136.06,5.61126117]
[1726415439154,7.47149,136.13,136.04,21.13499295]
[1726415439155,7.47149,136.13,136.07,5.61126117]
[1726415439356,7.47149,136.13,136.04,21.13499295]
[1726415439556,7.47149,136.13,136.05,5.61193912]
[1726415439764,7.47149,136.13,136.06,5.61193912]
[1726415440064,7.47149,136.13,136.07,5.61193912]
[1726415440356,7.47149,136.13,136.04,14.77811649]
[1726415440557,7.47149,136.13,136.05,30.0]
[1726415440937,7.47149,136.13,136.05,36.35738265]
[1726415441252,7.47149,136.13,136.06,5.61017488]
[1726415441450,7.3464,136.12,136.05,6.35738265]
[1726415441772,6.3349,136.11,136.06,5.60817676]
[1726415442063,6.3349,136.11,136.04,6.60867275]
[1726415442064,6.3349,136.11,136.07,5.60817676]
[1726415442237,6.3349,136.11,136.04,6.60867275]
[1726415442557,6.3349,136.11,136.05,7.08113027]
[1726415442860,6.3349,136.11,136.06,5.61142322]
[1726415443061,6.3349,136.11,136.07,5.61142322]
[1726415443350,6.3349,136.11,136.04,21.13549914]
[1726415443557,6.3349,136.11,136.05,7.08094773]
[1726415443745,6.3349,136.11,136.06,5.61126392]
[1726415443941,6.3349,136.11,136.07,5.61126392]
[1726415444147,6.3349,136.11,136.04,21.13549914]
[1726415444448,6.3349,136.11,136.05,30.0]
[1726415444644,6.3349,136.11,136.06,5.61126896]
[1726415444952,6.3349,136.11,136.07,5.61126896]
[1726415445157,6.3349,136.11,136.06,1.46968007]
[1726415445360,6.3349,136.11,136.07,5.61125901]
[1726415445660,6.3349,136.11,136.06,1.46968007]
[1726415445865,6.3349,136.11,136.07,5.61126666]
[1726415446038,6.3349,136.11,136.06,1.46968007]
[1726415446241,6.3349,136.11,136.07,5.61101263]
[1726415446451,13.682,136.11,136.05,6.35671463]
[1726415446644,13.682,136.11,136.06,5.61254383]
[1726415446843,13.682,136.11,136.07,5.61254383]
[1726415447137,13.682,136.11,136.04,6.60800473]
[1726415447338,13.682,136.11,136.05,5.61355976]
[1726415447553,6.3349,136.11,136.06,5.61355976]
[1726415447759,6.3349,136.11,136.07,5.61355976]
[1726415448060,6.3349,136.11,136.06,1.46978403]
[1726415448240,6.3349,136.11,136.07,5.61352219]
[1726415448440,6.3349,136.11,136.08,5.61352219]
[1726415448635,6.3349,136.11,136.06,1.46978403]
[1726415448858,6.3349,136.11,136.07,5.61344612]
[1726415449047,6.3349,136.11,136.08,5.61344612]
[1726415449249,6.3349,136.11,136.06,1.46978403]
[1726415449454,6.3349,136.11,136.07,5.61532443]
[1726415449656,6.3349,136.11,136.06,1.46978403]
[1726415449657,6.3349,136.11,136.08,5.61532443]
[1726415449847,6.3349,136.11,136.06,1.46978403]
[1726415450045,6.3349,136.11,136.07,5.61515697]
[1726415450336,6.3349,136.11,136.08,5.61515697]
[1726415450533,6.3349,136.11,136.05,14.52682639]
[1726415450739,6.3349,136.11,136.06,5.61540693]
[1726415451050,6.3349,136.11,136.07,5.61540693]
[1726415451303,6.3349,136.11,136.05,14.52682639]
[1726415451441,6.3349,136.11,136.06,5.61739427]
[1726415451758,6.3349,136.11,136.07,5.61739427]
[1726415451965,6.3349,136.11,136.06,1.46970573]
[1726415452145,6.3349,136.11,136.07,5.61742384]
[1726415452475,6.3349,136.11,136.06,1.46970573]
[1726415452766,6.3349,136.11,136.05,14.52682639]
[1726415452767,6.3349,136.11,136.07,5.61739334]
[1726415452948,6.3349,136.11,136.06,1.46970413]
[1726415453153,6.3349,136.11,136.07,5.61739242]
[1726415453339,6.3349,136.11,136.04,21.14199187]
[1726415453535,6.3349,136.11,136.05,11.98106095]
[1726415453740,6.3349,136.11,136.06,5.61718557]
[1726415454059,6.3349,136.11,136.07,5.61718557]
[1726415454258,6.3349,136.11,136.08,5.61718557]
[1726415454461,6.3349,136.11,136.05,6.36387538]
[1726415454647,6.3349,136.11,136.06,5.61715035]
[1726415454848,6.3349,136.11,136.07,5.61715035]
[1726415455164,6.3349,136.11,136.08,5.61715035]
[1726415455365,6.3349,136.11,136.05,6.36387538]
[1726415455571,6.3349,136.11,136.06,5.61711986]
[1726415455748,6.3349,136.11,136.07,5.61711986]
[1726415455947,6.3349,136.11,136.08,5.61711801]
[1726415456155,6.3349,136.11,136.05,6.36349316]
[1726415458162,6.3349,136.11,136.04,21.14160965]
[1726415458871,6.3349,136.11,136.05,7.83312581]
[1726415459469,6.3349,136.11,136.05,22.3599522]
[1726415460266,20.0,136.13,136.06,14.52682639]
[1726415460468,14.948,136.14,136.06,20.89031955]
[1726415460643,7.6026,136.14,136.06,14.52682639]
[1726415460847,14.9481,136.14,136.06,20.89031955]
[1726415461044,14.9481,136.14,136.06,6.36349316]
[1726415461288,14.9481,136.14,136.05,21.14129955]
[1726415461450,14.9481,136.14,136.05,21.14133545]
[1726415461766,7.346,136.13,136.05,21.14133545]
[1726415461968,7.346,136.13,136.06,10.34059072]
[1726415462270,7.346,136.13,136.07,3.97706166]
[1726415462667,7.346,136.13,136.06,6.36352906]
[1726415463248,7.3464,136.12,136.07,3.97720639]
[1726415463447,7.3464,136.12,136.05,30.0]
[1726415463448,7.3464,136.12,136.05,36.36352906]
[1726415463776,7.3471,136.11,136.06,3.97745087]
[1726415464071,7.3471,136.11,136.04,0.2512901]
[1726415464255,7.3471,136.11,136.05,3.97764345]
[1726415464459,7.3471,136.11,136.06,3.97764345]
[1726415464754,7.3471,136.11,136.05,6.36422953]
[1726415464959,7.3471,136.11,136.06,3.97764273]
[1726415465155,7.3471,136.11,136.05,6.36422953]
[1726415465361,7.3471,136.11,136.06,3.97764273]
[1726415465665,7.3471,136.11,136.05,6.36422953]
[1726415465868,7.3471,136.11,136.06,3.97764201]
[1726415466061,7.3471,136.11,136.05,6.36422953]
[1726415466369,7.3471,136.11,136.06,3.97761884]
[1726415466575,7.3476,136.1,136.04,0.2512901]
[1726415466763,7.3476,136.1,136.05,10.34180709]
[1726415466958,7.3476,136.1,136.06,3.97761811]
[1726415467279,14.9506,136.09,136.04,0.2512901]
[1726415467576,14.9506,136.09,136.05,3.97809612]
[1726415467783,14.9506,136.09,136.04,0.2512901]
[1726415468078,7.6026,136.09,136.05,3.97787878]
[1726415468381,7.3464,136.12,136.06,3.97787878]
[1726415468551,20.0,136.12,136.07,3.97787878]
[1726415468751,20.0,136.12,136.06,15.99674304]
[1726415468951,14.9486,136.13,136.07,6.36363926]
[1726415469175,7.6026,136.13,136.08,1.46957823]
[1726415469351,7.6026,136.13,136.07,14.52682639]
[1726415469554,7.6026,136.13,136.08,14.52682639]
[1726415469891,7.6026,136.13,136.04,6.7994901]
[1726415469892,7.6026,136.17,136.11,14.52682639]
[1726415470173,7.3444,136.16,136.07,0.12549]
[1726415470376,7.3444,136.16,136.09,14.52682639]
[1726415470563,14.9464,136.17,136.1,1.46922761]
[1726415470762,14.9464,136.17,136.1,15.996054]
[1726415471558,14.9464,136.17,136.1,14.52682639]
[1726415471960,14.9464,136.17,136.11,1.46917623]
[1726415472568,14.9464,136.17,136.1,14.52682639]
[1726415473785,14.9464,136.17,136.11,15.99591106]
[1726415473970,14.9464,136.17,136.11,14.52682639]
[1726415474385,14.9464,136.17,136.12,1.46908669]
[1726415474677,14.9464,136.17,136.07,0.12549]
[1726415474678,14.9464,136.17,136.1,14.52682639]
[1726415474885,14.9464,136.17,136.09,14.52682639]
[1726415475056,14.9464,136.17,136.08,14.52682639]
[1726415475668,14.9464,136.17,136.09,14.52682639]
[1726415477272,14.9464,136.17,136.1,14.52682639]
[1726415480086,14.9464,136.17,136.11,14.52682639]
[1726415480682,14.9464,136.17,136.1,14.52682639]
[1726415481672,7.3453,136.14,136.05,65.0871]
[1726415481874,7.50819,136.13,136.05,30.0]
[1726415482188,7.347,136.11,136.04,0.2512901]
[1726415482357,7.3475,136.1,136.04,0.2512901]
[1726415485257,0.12549,136.11,136.04,0.2512901]
[1726415485463,7.347,136.11,136.04,0.2512901]
[1726415485675,7.347,136.11,136.04,14.77811649]
[1726415485989,7.347,136.11,136.05,1.46981953]
[1726415487269,7.347,136.11,136.04,14.77811649]
[1726415488168,7.347,136.11,136.05,1.46983384]
[1726415488368,7.347,136.11,136.04,14.77811649]
[1726415489569,7.347,136.11,136.04,0.2512901]
[1726415502589,44.153354,136.12,136.04,0.2512901]
[1726415502797,13.829,136.09,136.04,0.2512901]
[1726415502977,8.349,136.08,136.04,0.2512901]
[1726415503183,7.3491,136.07,136.04,0.2512901]
[1726415504208,7.47569,136.05,136.04,0.2512901]
[1726415504509,7.60118,136.05,136.04,0.2512901]
[1726415504808,34.20717,136.05,136.04,0.2512901]
[1726415504996,34.20717,136.05,136.0,0.2512901]
[1726415504997,7.3513,136.03,136.0,0.2512901]
[1726415505307,20.0,136.04,136.0,0.2512901]
[1726415506898,6.4805,136.05,136.0,0.2512901]
[1726415508905,6.4805,136.05,136.0,1.72160003]
[1726415509424,7.3493,136.07,136.0,1.72160003]
[1726415509425,20.0,136.06,136.0,0.2512901]
[1726415509779,20.0,136.06,136.0,14.77811649]
[1726415509985,20.0,136.07,136.0,14.77811649]
[1726415510186,20.0,136.07,136.01,14.52682639]
[1726415510586,20.0,136.07,136.0,14.77811649]
[1726415513010,7.4805,136.08,136.01,14.52682639]
[1726415513413,7.4805,136.08,136.02,1.47012624]
[1726415513801,7.4805,136.08,136.01,14.52682639]
[1726415514795,14.8291,136.08,136.01,14.52682639]
[1726415516101,7.3478,136.1,136.02,14.52682639]
[1726415516285,20.0,136.1,136.01,15.5282]
[1726415516485,7.3481,136.09,136.01,35.67362631]
[1726415516685,7.3486,136.08,136.01,15.5282]
[1726415517310,7.3486,136.08,136.01,30.05502639]
[1726415518017,7.3486,136.08,136.02,30.0]
[1726415518826,7.3486,136.08,136.01,30.05502639]
[1726415521817,7.3486,136.08,136.01,15.5282]
[1726415522112,7.3491,136.07,136.0,0.2512901]
[1726415522313,7.3491,136.07,136.0,35.87069131]
[1726415522506,7.3491,136.07,136.0,30.2512901]
[1726415522709,14.589,136.06,136.0,30.2512901]
[1726415522913,14.589,136.06,136.0,0.2512901]
[1726415523306,7.3503,136.05,136.0,0.2512901]
[1726415523504,0.25098,136.04,136.0,0.2512901]
[1726415523820,27.47579,136.05,136.0,0.2512901]
[1726415523999,27.3503,136.05,136.0,0.2512901]
[1726415524714,20.0,136.05,136.0,1.72173633]
[1726415524903,7.2391,136.06,136.0,1.72173633]
[1726415525105,7.2391,136.06,136.0,21.8683868]
[1726415525314,0.12549,136.07,136.01,20.14618787]
[1726415525501,20.12549,136.07,136.02,1.47017294]
[1726415525822,7.3486,136.08,136.02,7.08922746]
[1726415526000,7.3486,136.08,136.02,21.61605385]
[1726415526202,14.71269,136.09,136.02,15.99699933]
[1726415526503,0.12549,136.08,136.02,15.99699933]
[1726415527324,0.12549,136.08,136.03,5.61778693]
[1726415527620,0.12549,136.08,136.02,15.99699933]
[1726415527795,0.12549,136.08,136.03,5.61711442]
[1726415527997,0.12549,136.08,136.02,15.99699933]
[1726415528194,0.12549,136.08,136.03,5.61722448]
[1726415528429,0.12549,136.08,136.02,15.99699933]
[1726415528601,0.12549,136.08,136.03,5.61766266]
[1726415528801,0.12549,136.08,136.02,15.99699933]
[1726415529020,0.12549,136.08,136.03,5.61766266]
[1726415529235,0.12549,136.08,136.02,15.99699933]
[1726415529522,0.12549,136.08,136.03,5.61687356]
[1726415529728,0.12549,136.08,136.02,15.99699933]
[1726415530133,0.12549,136.08,136.03,5.61657167]
[1726415530429,0.12549,136.08,136.02,15.99699933]
[1726415531431,0.12549,136.08,136.02,1.47017294]
[1726415532112,0.12549,136.08,136.01,18.50375279]
[1726415533227,0.12549,136.08,136.01,14.52682639]
[1726415533731,0.12549,136.08,136.01,18.50414998]
[1726415535617,14.5872,136.09,136.02,15.99695274]
[1726415535815,14.5872,136.09,136.03,14.52682639]
[1726415536215,7.2391,136.09,136.03,14.52682639]
[1726415536511,7.2391,136.09,136.02,14.52682639]
[1726415536706,14.5872,136.09,136.02,14.52682639]
[1726415537708,7.2391,136.09,136.03,14.52682639]
[1726415538128,7.2391,136.09,136.02,14.52682639]
[1726415538327,7.2391,136.09,136.03,14.52682639]
[1726415539138,7.2391,136.09,136.03,15.99681515]
[1726415539331,20.0,136.1,136.04,14.52682639]
[1726415539931,20.0,136.1,136.04,18.50085442]
[1726415540233,20.0,136.1,136.03,14.52682639]
[1726415540616,20.0,136.09,136.04,3.9740828]
[1726415541417,20.0,136.1,136.04,3.9740828]
[1726415542636,7.347,136.11,136.04,18.50090919]
[1726415542843,7.347,136.11,136.05,15.99663129]
[1726415543934,7.347,136.11,136.05,15.99668543]
[1726415544317,7.47209,136.12,136.05,15.99668543]
[1726415544514,7.1173,136.13,136.07,14.52682639]
[1726415544811,7.1173,136.13,136.08,1.46954721]
[1726415545847,7.1173,136.13,136.07,14.52682639]
[1726415547322,7.1173,136.13,136.08,1.46954749]
[1726415547953,7.1173,136.13,136.07,14.52682639]
[1726415548121,7.1173,136.13,136.05,3.9733187]
[1726415548122,14.4634,136.13,136.06,14.52682639]
[1726415548330,7.1173,136.13,136.05,14.52682639]
[1726415548528,0.12549,136.12,136.06,30.0]
[1726415549218,7.47189,136.12,136.06,30.0]
[1726415549442,7.47189,136.12,136.05,14.52682639]
[1726415549827,7.347,136.11,136.04,22.8928]
[1726415550140,7.347,136.11,136.05,14.52682639]
[1726415550443,7.47199,136.12,136.05,14.52682639]
[1726415550652,7.47199,136.12,136.06,14.52682639]
[1726415550858,7.47199,136.12,136.05,14.52682639]
[1726415551163,0.25098,136.12,136.04,16.5329]
[1726415551442,24.027864,136.11,136.02,14.52682639]
[1726415551749,7.3481,136.09,136.04,3.97403339]
[1726415551941,7.3481,136.09,136.03,3.97403339]
[1726415552141,7.3481,136.09,136.02,14.52682639]
[1726415552329,7.3481,136.09,136.03,3.9747682]
[1726415552534,7.3481,136.09,136.02,14.52682639]
[1726415553149,7.3481,136.09,136.03,5.44514356]
[1726415553333,7.3481,136.09,136.02,14.52682639]
[1726415553533,7.3481,136.09,136.03,5.44499074]
[1726415553735,7.3481,136.09,136.03,1.47007483]
[1726415554340,7.3481,136.09,136.02,14.52682639]
[1726415554533,7.3481,136.09,136.02,15.99687637]
[1726415554736,7.47309,136.1,136.03,18.50191369]
[1726415555049,20.0,136.1,136.05,14.52682639]
[1726415555928,20.0,136.11,136.05,14.52682639]
[1726415556128,7.3465,136.12,136.06,15.99658198]
[1726415556373,7.1173,136.13,136.07,14.52682639]
[1726415556644,6.1173,136.13,136.08,14.52682639]
[1726415558253,6.1173,136.13,136.07,14.52682639]
[1726415558450,6.1173,136.13,136.06,15.1686]
[1726415558749,6.1173,136.13,136.07,14.52682639]
[1726415559337,0.2512901,136.14,136.08,14.52682639]
[1726415559531,0.2512901,136.14,136.1,14.52682639]
[1726415560848,0.2512901,136.14,136.08,14.52682639]
[1726415561853,0.2512901,136.14,136.07,14.52682639]
[1726415562035,20.2512901,136.14,136.06,29.69542639]
[1726415562237,0.12549,136.13,136.06,29.69542639]
[1726415562831,0.12549,136.13,136.07,30.0]
[1726415563232,7.47139,136.13,136.07,30.0]
[1726415563755,7.47139,136.13,136.06,29.69542639]
[1726415568253,7.3464,136.12,136.06,29.69542639]
[1726415568461,7.3464,136.12,136.06,15.1686]
[1726415568630,7.3464,136.12,136.05,14.52682639]
[1726415568835,7.3464,136.12,136.06,30.0]
[1726415569331,7.3464,136.12,136.05,14.52682639]
[1726415570236,7.3464,136.12,136.03,21.7851]
[1726415570438,7.3464,136.12,136.05,14.52682639]
[1726415571432,7.3464,136.12,136.06,14.52682639]
[1726415572149,7.47149,136.13,136.06,14.52682639]
[1726415572546,20.0,136.12,136.06,14.52682639]
[1726415573959,20.0,136.12,136.05,14.52682639]
[1726415580865,7.3471,136.11,136.03,21.7851]
[1726415581063,7.3476,136.1,136.04,30.0]
[1726415581253,7.47369,136.09,136.01,14.52682639]
[1726415582571,7.47369,136.09,136.0,30.49321649]
[1726415583656,7.47369,136.09,136.01,14.52682639]
[1726415583842,7.47369,136.09,136.02,14.52682639]
[1726415584045,1.0,136.11,136.04,14.52682639]
[1726415584265,1.0,136.11,136.05,14.52682639]
[1726415584572,1.0,136.11,136.06,14.52682639]
[1726415585162,1.0,136.11,136.05,14.52682639]
[1726415585949,21.0,136.11,136.05,14.52682639]
[1726415586769,21.0,136.11,136.0,15.9663901]
[1726415586770,21.0,136.11,136.06,14.52682639]
[1726415586974,6.311,136.12,136.07,14.52682639]
[1726415587352,6.311,136.12,136.05,30.24192639]
[1726415587573,13.6575,136.12,136.05,30.24192639]
[1726415587769,6.311,136.12,136.06,15.99653391]
[1726415588170,6.311,136.12,136.07,14.52682639]
[1726415588347,6.311,136.12,136.08,1.46950951]
[1726415590253,6.311,136.12,136.06,14.52682639]
[1726415590646,6.311,136.12,136.07,5.60802624]
[1726415590846,6.311,136.12,136.08,5.60802624]
[1726415591151,6.311,136.12,136.07,14.52682639]
[1726415591350,6.311,136.12,136.08,5.60711174]
[1726415591561,6.311,136.12,136.07,15.99639835]
[1726415591762,6.311,136.12,136.07,14.52682639]
[1726415591962,20.0,136.13,136.09,14.52682639]
[1726415592368,20.2512901,136.14,136.09,14.52682639]
[1726415592546,20.2512901,136.14,136.08,14.52682639]
[1726415593975,20.2512901,136.14,136.09,1.46944124]
[1726415594471,20.2512901,136.14,136.08,14.52682639]
[1726415595170,27.5967901,136.14,136.07,14.52682639]
[1726415595363,27.5967901,136.14,136.06,14.52682639]
[1726415595568,7.3459,136.13,136.06,14.52682639]
[1726415597476,7.3459,136.13,136.07,14.52682639]
[1726415600271,20.2512901,136.14,136.09,14.52682639]
[1726415600458,0.2512901,136.14,136.09,14.52682639]
[1726415601977,7.3466,136.12,136.05,15.7151]